bitfinex/quotes_BTCUSD_20250414
["timestamp","ask_amount","ask_price","bid_price","bid_amount"]
[1744618736358,0.01184,84454.0,84451.0,0.0004222]
[1744618736563,0.189454,84453.0,84451.0,0.0004222]
[1744618736768,0.189454,84453.0,84451.0,0.000883]
[1744618736970,0.189454,84453.0,84451.0,0.001883]
[1744618737148,0.189454,84453.0,84451.0,0.005883]
[1744618738412,0.189454,84453.0,84451.0,0.001883]
[1744618738619,0.01184,84454.0,84451.0,0.000883]
[1744618738829,0.189454,84453.0,84451.0,0.001883]
[1744618739030,0.189454,84453.0,84451.0,0.002883]
[1744618739514,0.189454,84453.0,84451.0,0.000883]
[1744618739713,0.189454,84453.0,84451.0,0.001883]
[1744618740064,0.189454,84453.0,84451.0,0.002883]
[1744618740266,0.189454,84453.0,84451.0,0.001883]
[1744618740479,0.43275838,84456.0,84452.0,0.011841]
[1744618740675,0.42091838,84456.0,84453.0,0.01184]
[1744618741038,0.42091838,84456.0,84453.0,0.201294]
[1744618741240,0.43275838,84456.0,84452.0,0.011841]
[1744618742051,0.43275838,84456.0,84453.0,0.001]
[1744618742991,0.43275838,84456.0,84452.0,0.202297]
[1744618743626,0.4093063,84456.0,84454.0,0.189452]
[1744618745016,0.01193263,84462.0,84461.0,0.189436]
[1744618745214,0.1424,84463.0,84461.0,0.189436]
[1744618745614,0.011839,84462.0,84456.0,0.01184]
[1744618745801,0.011839,84462.0,84459.0,0.201281]
[1744618746110,0.011839,84461.0,84453.0,0.01184]
[1744618746262,0.01184,84454.0,84451.0,0.000883]
[1744618746459,0.201292,84454.0,84453.0,0.001]
[1744618747258,0.201292,84454.0,84451.0,0.000883]
[1744618747815,0.02348454,84462.0,84458.0,0.01184]
[1744618748027,0.011839,84461.0,84456.0,0.01184]
[1744618748600,0.01184,84459.0,84456.0,0.01184]
[1744618749453,0.01184,84459.0,84455.0,0.20129]
[1744618749838,0.01184,84459.0,84456.0,0.01184]
[1744618750899,0.01164554,84462.0,84460.0,0.189436]
[1744618751099,0.1424,84463.0,84460.0,0.201275]
[1744618751702,0.1424,84463.0,84462.0,0.189434]
[1744618752555,0.4093063,84467.0,84466.0,0.189425]
[1744618752758,0.5516663,84467.0,84466.0,0.189425]
[1744618754330,0.5526663,84467.0,84466.0,0.189425]
[1744618755180,0.4103063,84467.0,84466.0,0.189425]
[1744618756015,0.4113063,84467.0,84466.0,0.189425]
[1744618756420,0.4093063,84467.0,84466.0,0.189425]
[1744618756737,0.001,84467.0,84466.0,0.189425]
[1744618759393,0.001,84467.0,84462.0,0.201271]
[1744618759600,0.01184,84456.0,84451.0,0.012724]
[1744618759770,0.18945,84455.0,84451.0,0.00828107]
[1744618759981,0.33181,84455.0,84451.0,0.00828107]
[1744618760169,0.14236,84455.0,84451.0,0.012724]
[1744618760375,0.14236,84455.0,84452.0,0.011841]
[1744618762280,0.14236,84455.0,84452.0,0.012841]
[1744618762709,0.5516663,84455.0,84452.0,0.012841]
[1744618763600,0.5516663,84455.0,84452.0,0.205295]
[1744618763815,0.5516663,84455.0,84454.0,0.189452]
[1744618764190,0.4093063,84455.0,84454.0,0.189452]
[1744618765021,0.4093063,84455.0,84454.0,0.190452]
[1744618765363,0.4093063,84455.0,84454.0,0.19785074]
[1744618765922,0.4093063,84455.0,84454.0,0.19985074]
[1744618768543,0.14236,84456.0,84454.0,0.19985074]
[1744618769331,0.14236,84456.0,84454.0,0.192452]
[1744618769559,0.14236,84456.0,84454.0,0.191452]
[1744618769795,0.14236,84456.0,84455.0,0.0073986]
[1744618771372,0.14236,84456.0,84455.0,0.0083986]
[1744618772537,0.14236,84456.0,84455.0,0.0103986]
[1744618774865,0.14236,84461.0,84458.0,0.01184]
[1744618775250,0.14236,84461.0,84459.0,0.0073986]
[1744618775489,0.14236,84461.0,84458.0,0.01184]
[1744618775917,0.14236,84461.0,84458.0,0.201281]
[1744618776625,0.14236,84461.0,84459.0,0.00739863]
[1744618776983,0.14236,84461.0,84458.0,0.202281]
[1744618777785,0.14236,84461.0,84459.0,0.00739863]
[1744618778345,0.14236,84461.0,84458.0,0.202283]
[1744618778530,0.14236,84461.0,84458.0,0.201283]
[1744618779844,0.14236,84461.0,84458.0,0.202283]
[1744618782457,0.14236,84461.0,84458.0,0.01284]
[1744618784133,0.343635,84461.0,84458.0,0.001]
[1744618784386,0.31028154,84460.0,84458.0,0.001]
[1744618785298,0.189454,84453.0,84451.0,0.000883]
[1744618785761,0.189454,84453.0,84452.0,0.00739914]
[1744618786537,0.190454,84453.0,84452.0,0.00739914]
[1744618788229,0.191454,84453.0,84452.0,0.00739914]
[1744618788429,0.002,84453.0,84452.0,0.19685514]
[1744618788692,0.003,84453.0,84452.0,0.19685514]
[1744618788865,0.002,84453.0,84452.0,0.19685514]
[1744618789065,0.003,84453.0,84452.0,0.24655514]
[1744618792277,0.003,84453.0,84452.0,0.29365514]
[1744618793597,0.001,84453.0,84452.0,0.29365514]
[1744618794446,0.4093063,84464.0,84463.0,0.189432]
[1744618794877,0.05575195,84483.0,84482.0,0.189389]
[1744618795068,0.05575195,84484.0,84482.0,0.189389]
[1744618795282,0.05575195,84484.0,84482.0,0.19678814]
[1744618795480,0.05575195,84484.0,84483.0,0.00739914]
[1744618795627,0.05575195,84484.0,84483.0,0.05619914]
[1744618795820,0.05575195,84484.0,84483.0,0.00739914]
[1744618796231,0.05585554,84484.0,84483.0,0.00739914]
[1744618797081,0.00010359,84484.0,84483.0,0.00839914]
[1744618799393,0.00010359,84484.0,84483.0,0.001]
[1744618799798,0.00010359,84484.0,84483.0,0.190387]
[1744618802581,0.00010359,84484.0,84483.0,0.001]
[1744618802783,0.31032913,84484.0,84483.0,0.001]
[1744618802987,0.12094513,84484.0,84483.0,0.001]
[1744618803391,0.00010359,84484.0,84483.0,0.190387]
[1744618808890,0.00010359,84484.0,84483.0,0.239587]
[1744618809133,0.00010359,84484.0,84483.0,0.190387]
[1744618810969,0.00010359,84484.0,84483.0,0.001]
[1744618811151,0.31032913,84484.0,84483.0,0.001]
[1744618812866,0.65032913,84484.0,84483.0,0.001]
[1744618813665,0.65032913,84484.0,84483.0,0.190387]
[1744618813666,0.46094513,84484.0,84483.0,0.190387]
[1744618813909,0.34010359,84484.0,84483.0,0.190387]
[1744618814719,0.34110359,84484.0,84483.0,0.189387]
[1744618815103,0.34310359,84484.0,84483.0,0.189387]
[1744618815307,0.34310359,84484.0,84481.0,0.011836]
[1744618815308,0.34,84483.0,84481.0,0.011836]
[1744618815801,0.00310359,84484.0,84482.0,0.31023054]
[1744618816000,9.9e-07,84490.0,84488.0,0.189376]
[1744618816179,9.9e-07,84490.0,84489.0,0.17280816]
[1744618816399,9.9e-07,84490.0,84489.0,0.18020382]
[1744618818575,9.9e-07,84490.0,84489.0,0.18320382]
[1744618818802,9.9e-07,84490.0,84489.0,0.52720382]
[1744618819010,9.9e-07,84490.0,84489.0,0.5248372]
[1744618820713,9.9e-07,84490.0,84489.0,0.1848372]
[1744618820917,9.9e-07,84490.0,84489.0,0.06399566]
[1744618822414,9.9e-07,84490.0,84489.0,0.01439566]
[1744618822615,0.18937199,84490.0,84489.0,0.01439566]
[1744618822820,9.9e-07,84490.0,84489.0,0.01439566]
[1744618823158,9.9e-07,84490.0,84489.0,0.007]
[1744618823325,0.18937199,84490.0,84489.0,0.007]
[1744618823692,0.71951983,84490.0,84489.0,0.007]
[1744618823941,0.71951983,84490.0,84489.0,0.003]
[1744618824255,0.011837,84478.0,84475.0,0.011837]
[1744618824474,0.201228,84481.0,84476.0,0.011837]
[1744618824663,0.011837,84478.0,84475.0,0.011837]
[1744618824931,0.011838,84471.0,84459.0,0.18944]
[1744618825176,0.011838,84467.0,84462.0,0.011839]
[1744618825405,0.011838,84467.0,84461.0,0.201274]
[1744618825406,0.011839,84465.0,84461.0,0.201274]
[1744618825631,0.011839,84464.0,84458.0,0.01184]
[1744618825850,0.201264,84466.0,84454.0,0.20129]
[1744618825851,0.201278,84460.0,84454.0,0.01184]
[1744618826072,0.201278,84460.0,84457.0,0.00739741]
[1744618826073,0.01184,84459.0,84457.0,0.00739741]
[1744618826495,0.01184,84459.0,84456.0,0.01184]
[1744618827017,0.01184,84459.0,84456.0,0.0123008]
[1744618827217,0.011839,84462.0,84459.0,0.01184]
[1744618827416,0.190424,84467.0,84459.0,0.01184]
[1744618827417,0.341,84467.0,84461.0,0.201275]
[1744618827631,0.201264,84466.0,84461.0,0.011839]
[1744618827836,0.011839,84464.0,84461.0,0.011839]
[1744618828085,0.011839,84464.0,84457.0,0.01184]
[1744618828086,0.011839,84461.0,84457.0,0.01184]
[1744618828253,0.011839,84461.0,84456.0,0.0123008]
[1744618828453,0.011839,84460.0,84459.0,0.003]
[1744618828697,0.011838,84469.0,84464.0,0.189428]
[1744618828954,0.011838,84470.0,84467.0,0.011838]
[1744618829167,0.011838,84468.0,84465.0,0.011839]
[1744618829592,0.011838,84472.0,84461.0,0.013839]
[1744618829593,0.14216,84478.0,84469.0,0.189418]
[1744618829797,0.1422,84489.0,84482.0,0.011836]
[1744618829994,0.1422,84489.0,84487.0,0.189378]
[1744618830613,9.9e-07,84490.0,84489.0,0.189373]
[1744618831032,4.725e-05,84490.0,84489.0,0.189373]
[1744618831644,4.725e-05,84490.0,84489.0,0.19371118]
[1744618831847,0.00104725,84490.0,84489.0,0.19371118]
[1744618832167,0.00204725,84490.0,84489.0,0.19371118]
[1744618832627,0.00204725,84490.0,84489.0,0.31455272]
[1744618833254,0.00204725,84490.0,84489.0,0.32194687]
[1744618833649,4.725e-05,84490.0,84489.0,0.20110533]
[1744618833844,4.725e-05,84490.0,84489.0,0.20410533]
[1744618834052,4.725e-05,84490.0,84489.0,0.19871118]
[1744618834391,4.725e-05,84490.0,84489.0,0.19807794]
[1744618834547,4.725e-05,84490.0,84489.0,0.19907794]
[1744618834749,4.725e-05,84490.0,84489.0,0.20647241]
[1744618834945,4.725e-05,84490.0,84489.0,0.20610565]
[1744618835152,4.725e-05,84490.0,84489.0,0.19871118]
[1744618836172,4.725e-05,84490.0,84489.0,0.20107794]
[1744618836778,4.725e-05,84490.0,84489.0,0.19871118]
[1744618841800,4.725e-05,84490.0,84489.0,0.00933818]
[1744618842140,4.725e-05,84490.0,84489.0,0.005]
[1744618843238,4.725e-05,84490.0,84489.0,0.003]
[1744618843662,0.011836,84486.0,84481.0,0.011836]
[1744618843868,0.011836,84486.0,84482.0,0.00429066]
[1744618844180,0.201218,84485.0,84482.0,0.00429066]
[1744618844330,0.189387,84483.0,84482.0,0.00429066]
[1744618844512,0.011836,84484.0,84480.0,0.011837]
[1744618844914,0.011836,84484.0,84481.0,0.00428965]
[1744618845313,0.201223,84483.0,84481.0,0.00428965]
[1744618845728,0.011836,84482.0,84479.0,0.011837]
[1744618845933,0.011836,84482.0,84477.0,0.011837]
[1744618846137,0.011836,84481.0,84477.0,0.011837]
[1744618847157,0.011836,84481.0,84477.0,0.013837]
[1744618847360,0.011837,84480.0,84477.0,0.016837]
[1744618847715,0.011836,84481.0,84478.0,0.011837]
[1744618847920,0.011837,84480.0,84477.0,0.005]
[1744618848321,0.189398,84478.0,84477.0,0.005]
[1744618848619,0.201233,84480.0,84477.0,0.005]
[1744618849263,0.189398,84478.0,84477.0,0.002]
[1744618849465,0.201235,84478.0,84475.0,0.011837]
[1744618849880,0.011837,84477.0,84474.0,0.011837]
[1744618850704,0.011837,84477.0,84475.0,0.001]
[1744618850958,0.011839,84465.0,84460.0,0.011839]
[1744618851171,0.011839,84465.0,84455.0,0.0480222]
[1744618851172,0.011839,84461.0,84455.0,0.1898702]
[1744618851378,0.011839,84461.0,84457.0,0.189445]
[1744618851557,0.011839,84462.0,84459.0,0.01184]
[1744618852414,0.011839,84462.0,84459.0,0.01194359]
[1744618852769,0.011839,84462.0,84459.0,0.01294359]
[1744618852993,0.011839,84462.0,84460.0,0.003]
[1744618853432,0.011839,84462.0,84459.0,0.01294359]
[1744618853639,0.011838,84471.0,84466.0,0.011839]
[1744618853807,0.011838,84471.0,84467.0,0.011838]
[1744618854019,0.011838,84470.0,84466.0,0.011839]
[1744618854240,0.011838,84469.0,84466.0,0.011839]
[1744618856276,0.012838,84469.0,84466.0,0.011839]
[1744618857093,0.013838,84469.0,84466.0,0.011839]
[1744618857771,0.013838,84469.0,84465.0,0.011839]
[1744618858712,0.002,84469.0,84466.0,0.011839]
[1744618858938,0.001,84469.0,84468.0,0.18942]
[1744618859192,0.4093063,84474.0,84472.0,0.189411]
[1744618859780,0.4093063,84474.0,84473.0,0.00437483]
[1744618860515,0.011836,84483.0,84473.0,0.00437483]
[1744618860516,0.14216,84486.0,84483.0,0.201221]
[1744618860720,0.011837,84480.0,84473.0,0.00437483]
[1744618860931,0.011838,84470.0,84465.0,0.011839]
[1744618861082,0.011838,84470.0,84467.0,0.011838]
[1744618861285,0.189415,84471.0,84467.0,0.011838]
[1744618861286,0.002,84474.0,84468.0,0.011838]
[1744618861487,0.011838,84473.0,84470.0,0.011838]
[1744618861693,0.011838,84472.0,84468.0,0.011838]
[1744618862053,0.189414,84471.0,84465.0,0.011839]
[1744618862312,0.011838,84468.0,84465.0,0.011839]
[1744618862610,0.011838,84471.0,84468.0,0.011838]
[1744618862749,0.011838,84472.0,84470.0,0.002]
[1744618862995,0.011838,84472.0,84469.0,0.011838]
[1744618863501,0.011838,84471.0,84468.0,0.011838]
[1744618863903,0.011838,84471.0,84470.0,0.002]
[1744618865014,0.13267954,84471.0,84470.0,0.002]
[1744618865227,0.189416,84470.0,84469.0,0.002]
[1744618865435,0.31025754,84470.0,84469.0,0.002]
[1744618865640,1.05956384,84470.0,84469.0,0.005]
[1744618865849,0.189438,84460.0,84459.0,0.00010359]
[1744618867822,0.189438,84460.0,84459.0,0.00110359]
[1744618868294,0.189438,84460.0,84459.0,0.00410359]
[1744618868496,0.189438,84460.0,84459.0,0.00110359]
[1744618869120,1.06058584,84460.0,84459.0,0.00110359]
[1744618869637,1.06058584,84460.0,84459.0,0.00010359]
[1744618870046,1.06158584,84460.0,84459.0,0.00010359]
[1744618886952,0.7513063,84460.0,84459.0,0.00010359]
[1744618887450,0.7513063,84460.0,84459.0,0.00438717]
[1744618889327,0.7513063,84460.0,84459.0,0.00010359]
[1744618889577,0.87214784,84460.0,84459.0,0.00010359]
[1744618897175,1.01430784,84460.0,84459.0,0.00010359]
[1744618898402,0.002,84460.0,84459.0,0.04560359]
[1744618898580,0.002,84460.0,84459.0,0.04797139]
[1744618898782,0.002,84460.0,84459.0,0.05963584]
[1744618899371,0.4093063,84474.0,84459.0,0.05963584]
[1744618899372,0.14216,84477.0,84474.0,0.011837]
[1744618899598,0.4093063,84485.0,84482.0,0.011836]
[1744618900291,0.4093063,84485.0,84483.0,0.0042308]
[1744618900693,0.189384,84484.0,84483.0,0.0042308]
[1744618900923,0.201238,84477.0,84472.0,0.011838]
[1744618901267,0.201238,84477.0,84473.0,0.0160516]
[1744618901781,0.011837,84477.0,84473.0,0.2054606]
[1744618902261,0.011837,84476.0,84473.0,0.0160516]
[1744618902621,0.011837,84477.0,84474.0,0.011837]
[1744618902984,0.011837,84477.0,84475.0,0.00419932]
[1744618903265,0.201232,84480.0,84475.0,0.20544032]
[1744618903994,0.001,84477.0,84475.0,0.20544032]
[1744618904459,0.011837,84479.0,84475.0,0.20544032]
[1744618905246,0.001,84477.0,84475.0,0.20544032]
[1744618905441,0.002,84477.0,84475.0,0.20544032]
[1744618905645,0.001,84477.0,84475.0,0.20544032]
[1744618906391,0.002,84477.0,84475.0,0.20544032]
[1744618906955,0.001,84477.0,84475.0,0.20544032]
[1744618907550,0.65024354,84476.0,84475.0,0.00419932]
[1744618907775,0.65024354,84476.0,84446.0,0.0451]
[1744618907776,0.189438,84460.0,84446.0,0.0451]
[1744618907978,1.20170584,84460.0,84443.0,0.0466]
[1744618908183,1.20170584,84460.0,84441.0,0.0085]
[1744618908398,1.36823432,84460.0,84441.0,0.0085]
[1744618908614,1.24750584,84460.0,84441.0,0.0085]
[1744618909721,1.26704669,84460.0,84459.0,5.9e-07]
[1744618909894,1.32423949,84460.0,84459.0,5.9e-07]
[1744618910099,1.3574069,84460.0,84459.0,5.9e-07]
[1744618910275,1.48013538,84460.0,84459.0,5.9e-07]
[1744618910718,1.47813538,84460.0,84459.0,5.9e-07]
[1744618911226,1.48113538,84460.0,84459.0,5.9e-07]
[1744618911402,1.44796797,84460.0,84459.0,5.9e-07]
[1744618912003,1.32723949,84460.0,84459.0,5.9e-07]
[1744618912258,0.529447,84456.0,84441.0,0.0085]
[1744618912452,0.65028854,84456.0,84455.0,0.000883]
[1744618913521,0.65328854,84456.0,84455.0,0.000883]
[1744618914239,0.79544854,84456.0,84455.0,0.000883]
[1744618914619,0.65328854,84456.0,84455.0,0.000883]
[1744618914802,0.79944854,84456.0,84455.0,0.000883]
[1744618916760,0.81398939,84456.0,84455.0,0.000883]
[1744618917943,0.201292,84454.0,84444.0,0.0004222]
[1744618918149,0.46084154,84452.0,84444.0,0.0004222]
[1744618918491,0.65029754,84452.0,84444.0,0.0004222]
[1744618919485,0.65329754,84452.0,84444.0,0.0004222]
[1744618919776,0.68924722,84452.0,84444.0,0.0004222]
[1744618919960,0.65329754,84452.0,84444.0,0.0004222]
[1744618920896,0.65529754,84452.0,84444.0,0.0004222]
[1744618921031,0.46584154,84452.0,84444.0,0.0122642]
[1744618921237,0.79745754,84452.0,84445.0,0.0499]
[1744618922139,0.79745754,84452.0,84444.0,0.0004222]
[1744618923854,1.20588025,84452.0,84444.0,0.0004222]
[1744618925294,0.75342271,84452.0,84449.0,0.201302]
[1744618925455,0.89558271,84452.0,84451.0,0.1898802]
[1744618925656,0.89558271,84452.0,84451.0,0.00370462]
[1744618926063,1.08503871,84452.0,84451.0,0.00370462]
[1744618926626,1.20588025,84452.0,84451.0,0.0004222]
[1744618933150,2.3285811,84452.0,84451.0,0.0004222]
[1744618933346,0.189463,84449.0,84448.0,0.0004222]
[1744618933571,0.64530454,84449.0,84448.0,0.0004222]
[1744618934782,0.64730454,84449.0,84448.0,0.0004222]
[1744618935016,0.64830454,84449.0,84448.0,0.0004222]
[1744618935716,1.05672725,84449.0,84448.0,0.0004222]
[1744618936282,1.0712681,84449.0,84448.0,0.0004222]
[1744618938479,1.05672725,84449.0,84448.0,0.0004222]
[1744618946589,0.87226425,84449.0,84448.0,0.0004222]
[1744618946879,1.01438425,84449.0,84448.0,0.0004222]
[1744618947932,0.41142271,84449.0,84448.0,0.1898872]
[1744618948140,0.003,84449.0,84448.0,0.2874188]
[1744618950951,0.41142271,84476.0,84475.0,0.19235349]
[1744618952120,0.41342271,84476.0,84475.0,0.19235349]
[1744618952611,0.40842271,84476.0,84475.0,0.00294849]
[1744618952813,0.41042271,84476.0,84475.0,0.00294849]
[1744618953111,0.41242271,84476.0,84475.0,0.19235349]
[1744618953340,0.004,84476.0,84475.0,0.189405]
[1744618953554,0.006,84476.0,84475.0,0.19229882]
[1744618955189,0.004,84476.0,84475.0,0.19229882]
[1744618955628,0.001,84476.0,84475.0,0.19229882]
[1744618955879,0.002,84476.0,84475.0,0.19229882]
[1744618956114,0.001,84476.0,84475.0,0.19229882]
[1744618956343,0.1429246,84483.0,84480.0,0.20123]
[1744618956568,0.14303415,84483.0,84480.0,0.20123]
[1744618956789,0.14303415,84483.0,84481.0,0.00290673]
[1744618957777,0.14403415,84483.0,84481.0,0.00290673]
[1744618958394,0.14503415,84483.0,84481.0,0.00290673]
[1744618958849,0.14403415,84483.0,84481.0,0.00290673]
[1744618959083,0.14403415,84483.0,84482.0,0.189389]
[1744618959504,0.14403415,84483.0,84482.0,0.19229788]
[1744618960198,0.14603415,84483.0,84482.0,0.19229788]
[1744618961260,0.14503415,84483.0,84482.0,0.19229788]
[1744618961660,0.14603415,84483.0,84482.0,0.00290888]
[1744618961861,0.33542115,84483.0,84482.0,0.00290888]
[1744618962103,0.011837,84478.0,84474.0,0.011837]
[1744618962425,0.011837,84478.0,84475.0,0.00288334]
[1744618963162,0.14303415,84483.0,84479.0,0.011837]
[1744618963364,0.14303415,84483.0,84481.0,0.18939]
[1744618963817,0.14303415,84483.0,84482.0,0.0028941]
[1744618964521,0.14403415,84483.0,84482.0,0.0028941]
[1744618965709,0.14503415,84483.0,84482.0,0.0028941]
[1744618966426,0.14403415,84483.0,84482.0,0.0028941]
[1744618966626,0.14503415,84483.0,84482.0,0.0028941]
[1744618967857,0.00295415,84483.0,84482.0,0.0028941]
[1744618968052,0.14495415,84483.0,84482.0,0.0028941]
[1744618969631,0.00295415,84483.0,84482.0,0.0028941]
[1744618969764,0.14495415,84483.0,84482.0,0.05216127]
[1744618969997,0.14495415,84483.0,84482.0,0.0497941]
[1744618973189,0.00295415,84483.0,84482.0,0.0497941]
[1744618973553,0.00295415,84483.0,84482.0,0.05216119]
[1744618973774,0.00295415,84483.0,84482.0,0.0975941]
[1744618974179,0.00295415,84483.0,84482.0,0.09996119]
[1744618974541,0.00295415,84483.0,84482.0,0.22080273]
[1744618975201,0.00195415,84483.0,84482.0,0.22080273]
[1744618975428,0.00195415,84483.0,84482.0,0.2281974]
[1744618975564,0.00095415,84483.0,84482.0,0.24373825]
[1744618975785,0.00095415,84483.0,84482.0,0.24337116]
[1744618975983,0.0008446,84489.0,84487.0,0.238678]
[1744618976347,0.0008446,84489.0,84488.0,0.18268225]
[1744618977661,0.0018446,84489.0,84488.0,0.18768225]
[1744618978009,0.0018446,84489.0,84488.0,0.19068225]
[1744618979416,0.0018446,84489.0,84488.0,0.2052231]
[1744618979635,0.0018446,84489.0,84488.0,0.20285638]
[1744618981377,0.0018446,84489.0,84488.0,0.18831553]
[1744618982212,0.0018446,84489.0,84488.0,0.1906821]
[1744618982795,6e-07,84489.0,84488.0,0.25062295]
[1744618982997,6e-07,84489.0,84488.0,0.24825638]
[1744618983449,0.002,84499.0,84489.0,0.01454085]
[1744618983617,0.002,84499.0,84489.0,0.37662171]
[1744618983781,0.002,84499.0,84489.0,0.37701468]
[1744618983981,0.002,84499.0,84489.0,0.3698685]
[1744618984619,0.002,84499.0,84489.0,0.3738685]
[1744618985800,0.002,84499.0,84489.0,0.3798685]
[1744618987380,0.002,84499.0,84489.0,0.37247383]
[1744618987534,0.002,84499.0,84489.0,0.37986775]
[1744618988897,0.002,84499.0,84489.0,0.37247383]
[1744618992394,0.002,84499.0,84489.0,0.20213229]
[1744618998118,0.011834,84497.0,84489.0,0.20213229]
[1744618998325,0.013834,84499.0,84489.0,0.20213229]
[1744618998545,0.013834,84499.0,84489.0,0.01275929]
[1744618998546,0.189371,84491.0,84489.0,0.01275929]
[1744618998748,0.16664253,84490.0,84489.0,0.01275929]
[1744618998955,0.51819629,84490.0,84489.0,0.01]
[1744618999304,0.51819629,84490.0,84489.0,0.006]
[1744618999511,0.011837,84479.0,84476.0,0.011837]
[1744618999707,0.189391,84481.0,84457.0,0.189444]
[1744618999708,0.011838,84469.0,84457.0,0.189444]
[1744618999914,0.201264,84466.0,84462.0,0.011839]
[1744619000153,0.011839,84466.0,84462.0,0.011839]
[1744619000515,0.201278,84460.0,84457.0,0.00010955]
[1744619000735,0.011839,84460.0,84457.0,0.00010955]
[1744619000980,0.011839,84460.0,84457.0,0.00410955]
[1744619001111,0.011839,84462.0,84459.0,0.01184]
[1744619001314,0.011839,84461.0,84458.0,0.01184]
[1744619001746,0.011839,84460.0,84457.0,0.00010955]
[1744619002266,0.189441,84459.0,84457.0,0.00010955]
[1744619003220,0.46084154,84458.0,84457.0,0.00710955]
[1744619003630,0.46084154,84458.0,84457.0,0.00310955]
[1744619003824,0.46084154,84458.0,84457.0,0.00010955]
[1744619004089,0.46973275,84458.0,84457.0,0.00310955]
[1744619004487,0.46973275,84458.0,84457.0,0.00510955]
[1744619004488,0.87815546,84458.0,84457.0,0.00510955]
[1744619004696,0.992294,84458.0,84457.0,0.00410955]
[1744619004846,1.05403485,84458.0,84457.0,0.00510955]
[1744619005049,0.55582585,84457.0,84454.0,0.0004221]
[1744619005226,0.55582585,84457.0,84444.0,0.0004222]
[1744619005227,0.529472,84445.0,84444.0,0.0004222]
[1744619005433,1.20069625,84445.0,84444.0,0.00088505]
[1744619006907,1.20269625,84445.0,84444.0,0.00088505]
[1744619007416,1.20369625,84445.0,84444.0,0.00088505]
[1744619009776,0.529499,84433.0,84425.0,0.0004221]
[1744619009982,0.189546,84412.0,84411.0,0.0003789]
[1744619010189,0.189546,84412.0,84411.0,0.00042518]
[1744619010190,0.331546,84412.0,84411.0,0.00042518]
[1744619013263,0.332546,84412.0,84411.0,0.00042518]
[1744619018007,0.143,84412.0,84411.0,0.00042518]
[1744619018215,0.001,84412.0,84411.0,0.00331954]
[1744619018424,0.001,84412.0,84411.0,0.04911954]
[1744619020165,0.40842271,84416.0,84415.0,0.189539]
[1744619020594,0.40842271,84416.0,84415.0,0.19244197]
[1744619020805,0.35526678,84422.0,84418.0,0.011845]
[1744619021210,0.35526678,84422.0,84419.0,0.00291374]
[1744619021890,0.35826678,84422.0,84419.0,0.00291374]
[1744619022493,0.003,84422.0,84420.0,0.189528]
[1744619022871,0.003,84422.0,84421.0,0.00290836]
[1744619023274,0.40842271,84425.0,84424.0,0.189519]
[1744619023683,0.40842271,84425.0,84424.0,0.1924222]
[1744619024760,0.40942271,84425.0,84424.0,0.1924222]
[1744619025427,0.40942271,84425.0,84424.0,0.0029032]
[1744619025677,0.011845,84419.0,84415.0,0.011846]
[1744619025836,0.011845,84417.0,84413.0,0.011846]
[1744619026043,0.011845,84417.0,84411.0,0.23577118]
[1744619026044,0.189537,84416.0,84414.0,0.00288382]
[1744619026223,0.011845,84417.0,84411.0,0.00042518]
[1744619026224,0.011846,84414.0,84411.0,0.00042518]
[1744619026423,0.189546,84412.0,84411.0,0.00042518]
[1744619026837,0.14204,84415.0,84411.0,0.18997218]
[1744619027032,0.14204,84415.0,84412.0,0.00288044]
[1744619027235,0.14204,84415.0,84412.0,0.01472644]
[1744619027421,0.153886,84415.0,84412.0,0.01472644]
[1744619027624,0.189544,84413.0,84412.0,0.00288044]
[1744619027822,0.189544,84413.0,84411.0,0.00142518]
[1744619028025,0.14204,84415.0,84412.0,0.01471981]
[1744619028224,0.153886,84415.0,84412.0,0.01571981]
[1744619028424,0.343427,84415.0,84412.0,0.00287381]
[1744619028646,0.153886,84415.0,84412.0,0.00287381]
[1744619029429,0.153886,84415.0,84412.0,0.00387381]
[1744619029827,0.153886,84415.0,84412.0,0.00487381]
[1744619030026,0.343427,84415.0,84412.0,0.00487381]
[1744619030269,0.189544,84413.0,84412.0,0.002]
[1744619030663,0.189544,84413.0,84412.0,0.00387872]
[1744619031068,0.189544,84413.0,84412.0,0.001]
[1744619031300,0.189544,84413.0,84411.0,0.00042518]
[1744619031504,0.189544,84413.0,84412.0,0.002]
[1744619032295,0.74088646,84413.0,84412.0,0.002]
[1744619032821,0.74088646,84413.0,84412.0,0.001]
[1744619033819,0.74088646,84413.0,84412.0,0.002]
[1744619034233,0.71880825,84413.0,84412.0,0.002]
[1744619034439,0.71880825,84413.0,84412.0,0.00546623]
[1744619035323,0.71880825,84413.0,84412.0,0.002]
[1744619038879,0.71880825,84413.0,84412.0,0.001]
[1744619039110,0.71880825,84413.0,84411.0,0.00042518]
[1744619039411,0.12084154,84412.0,84411.0,0.00042518]
[1744619039788,0.59896671,84413.0,84411.0,0.00042518]
[1744619039996,0.40942271,84413.0,84412.0,0.00371495]
[1744619040191,0.40842271,84413.0,84412.0,0.00371495]
[1744619040395,0.40842271,84413.0,84411.0,0.00042518]
[1744619040396,0.40942271,84413.0,84411.0,0.00042518]
[1744619040651,0.40942271,84413.0,84412.0,0.24076095]
[1744619041172,0.001,84413.0,84412.0,0.24076095]
[1744619042182,0.011844,84425.0,84421.0,0.011845]
[1744619042398,0.351844,84426.0,84422.0,0.20512071]
[1744619042610,0.011844,84425.0,84421.0,0.011845]
[1744619042844,0.189521,84424.0,84422.0,0.00375371]
[1744619043076,0.201365,84424.0,84420.0,0.011845]
[1744619043529,0.34,84423.0,84421.0,0.00375048]
[1744619043802,0.003,84426.0,84424.0,0.189519]
[1744619044039,0.003,84426.0,84425.0,0.00295176]
[1744619045083,0.003,84426.0,84425.0,0.04815176]
[1744619045282,0.003,84426.0,84425.0,0.05052035]
[1744619045530,0.14204,84441.0,84438.0,0.011843]
[1744619045959,0.14204,84441.0,84439.0,0.19243203]
[1744619046680,0.14204,84441.0,84439.0,0.00299431]
[1744619046885,0.14404,84441.0,84439.0,0.00299431]
[1744619047038,0.14804,84441.0,84439.0,0.00299431]
[1744619047901,0.14804,84441.0,84439.0,0.19247931]
[1744619048102,0.14604,84441.0,84439.0,0.19247931]
[1744619048352,0.14204,84441.0,84439.0,0.19247931]